[Event "*** Titled Tuesday Blitz"]
[Site "Chess.com"]
[Date "2020.11.03"]
[Round "4"]
[White "Alexsur1981"]
[Black "rasmussvane"]
[Result "0-1"]
[WhiteElo "2775"]
[BlackElo "2953"]
[TimeControl "180+1"]
[EndTime "10:41:53 PST"]
[Termination "rasmussvane won on time"]

1. e4 {[%clk 0:03:00.9]} 1... c6 {[%clk 0:03:00.2]} 2. Nc3 {[%clk 0:03:00.5]}
2... d5 {[%clk 0:03:00.4]} 3. Qe2 {[%clk 0:03:01.2]} 3... dxe4 {[%clk
0:02:50.4]} 4. Nxe4 {[%clk 0:03:02.1]} 4... Bf5 {[%clk 0:02:50.6]} 5. d3 {[%clk
0:03:01.7]} 5... h6 {[%clk 0:02:45.8]} 6. Bd2 {[%clk 0:02:55.7]} 6... e6 {[%clk
0:02:45.5]} 7. g4 {[%clk 0:02:53.8]} 7... Bh7 {[%clk 0:02:45.2]} 8. O-O-O {[%clk
0:02:52.5]} 8... Nd7 {[%clk 0:02:45.1]} 9. f4 {[%clk 0:02:50.6]} 9... Ngf6
{[%clk 0:02:34.9]} 10. Bg2 {[%clk 0:02:48.9]} 10... Qc7 {[%clk 0:02:31.9]} 11.
h4 {[%clk 0:02:37]} 11... O-O-O {[%clk 0:02:30.3]} 12. Nh3 {[%clk 0:02:29.2]}
12... Be7 {[%clk 0:02:26.9]} 13. g5 {[%clk 0:02:24.9]} 13... Nd5 {[%clk
0:02:22.9]} 14. Nc3 {[%clk 0:02:17.8]} 14... Bf5 {[%clk 0:02:17.8]} 15. Nxd5
{[%clk 0:02:10.8]} 15... cxd5 {[%clk 0:02:17.2]} 16. Nf2 {[%clk 0:02:08]} 16...
Bd6 {[%clk 0:02:15.9]} 17. Qf3 {[%clk 0:02:06.4]} 17... Kb8 {[%clk 0:02:14.9]}
18. Kb1 {[%clk 0:02:05.3]} 18... Rc8 {[%clk 0:02:14.1]} 19. c3 {[%clk
0:02:00.1]} 19... Qb6 {[%clk 0:02:05.5]} 20. Ka1 {[%clk 0:01:53.7]} 20... Nc5
{[%clk 0:02:03.4]} 21. Bh3 {[%clk 0:01:35.5]} 21... Bxh3 {[%clk 0:01:59.2]} 22.
Rxh3 {[%clk 0:01:34.9]} 22... Rc6 {[%clk 0:01:37.1]} 23. gxh6 {[%clk 0:01:07]}
23... gxh6 {[%clk 0:01:35.9]} 24. f5 {[%clk 0:01:03.7]} 24... Qa5 {[%clk
0:01:19.9]} 25. Kb1 {[%clk 0:00:45.5]} 25... Rb6 {[%clk 0:01:13]} 26. Rc1 {[%clk
0:00:19.3]} 26... Rc8 {[%clk 0:01:10.8]} 27. fxe6 {[%clk 0:00:12.6]} 27... fxe6
{[%clk 0:01:04]} 28. Rc2 {[%clk 0:00:12.1]} 28... Ra6 {[%clk 0:00:58.7]} 29. b4
{[%clk 0:00:11.3]} 29... Qb5 {[%clk 0:00:57.4]} 30. c4 {[%clk 0:00:08.9]} 30...
dxc4 {[%clk 0:00:50.2]} 31. dxc4 {[%clk 0:00:09.8]} 31... Qb6 {[%clk 0:00:49.2]}
32. Qe3 {[%clk 0:00:09]} 32... Ra4 {[%clk 0:00:44.8]} 33. a3 {[%clk 0:00:08]}
33... a5 {[%clk 0:00:45.1]} 34. b5 {[%clk 0:00:06.9]} 34... Qc7 {[%clk
0:00:36.8]} 35. Nd1 {[%clk 0:00:03.4]} 35... Nd7 {[%clk 0:00:34.7]} 36. Nb2
{[%clk 0:00:03]} 36... Rxa3 {[%clk 0:00:35.1]} 37. Rc3 {[%clk 0:00:03.2]} 37...
Rxc3 {[%clk 0:00:33.8]} 38. Qxc3 {[%clk 0:00:04.1]} 38... Bb4 {[%clk 0:00:29.8]}
39. Qc1 {[%clk 0:00:04.2]} 39... Nb6 {[%clk 0:00:26.1]} 0-1

[Event "*** Titled Tuesday Blitz"]
[Site "Chess.com"]
[Date "2020.11.03"]
[Round "4"]
[White "Koksik_13"]
[Black "Aleksey_Sorokin"]
[Result "0-1"]
[WhiteElo "2660"]
[BlackElo "2879"]
[TimeControl "180+1"]
[EndTime "10:41:54 PST"]
[Termination "Aleksey_Sorokin won on time"]

1. d4 {[%clk 0:03:00.9]} 1... Nf6 {[%clk 0:02:57.7]} 2. Nc3 {[%clk 0:03:00.9]}
2... d5 {[%clk 0:02:57.2]} 3. Bf4 {[%clk 0:03:00.7]} 3... a6 {[%clk 0:02:56.6]}
4. e3 {[%clk 0:03:00.6]} 4... e6 {[%clk 0:02:56.7]} 5. Nf3 {[%clk 0:03:00.9]}
5... c5 {[%clk 0:02:57]} 6. Bd3 {[%clk 0:03:01.4]} 6... Nc6 {[%clk 0:02:57.2]}
7. O-O {[%clk 0:03:01.3]} 7... b5 {[%clk 0:02:57.4]} 8. a3 {[%clk 0:02:58.2]}
8... Bb7 {[%clk 0:02:56.5]} 9. dxc5 {[%clk 0:02:56.8]} 9... Bxc5 {[%clk
0:02:55.9]} 10. Qe2 {[%clk 0:02:57.2]} 10... Bd6 {[%clk 0:02:40]} 11. Bxd6
{[%clk 0:02:53.5]} 11... Qxd6 {[%clk 0:02:40.9]} 12. e4 {[%clk 0:02:53.9]} 12...
dxe4 {[%clk 0:02:40.8]} 13. Nxe4 {[%clk 0:02:53.8]} 13... Nxe4 {[%clk
0:02:40.8]} 14. Bxe4 {[%clk 0:02:53.8]} 14... Qc7 {[%clk 0:02:40.8]} 15. c4
{[%clk 0:02:47.7]} 15... b4 {[%clk 0:02:33]} 16. Bxc6+ {[%clk 0:02:36.2]} 16...
Bxc6 {[%clk 0:02:32.9]} 17. axb4 {[%clk 0:02:36.3]} 17... Qb7 {[%clk 0:02:33.1]}
18. b5 {[%clk 0:02:20.2]} 18... axb5 {[%clk 0:02:33.1]} 19. cxb5 {[%clk
0:02:20.1]} 19... Rxa1 {[%clk 0:02:27.9]} 20. Rxa1 {[%clk 0:02:21]} 20... Bxb5
{[%clk 0:02:20.9]} 21. Qe3 {[%clk 0:01:35.5]} 21... O-O {[%clk 0:02:02]} 22. Ra7
{[%clk 0:01:34.9]} 22... Qb8 {[%clk 0:01:54.2]} 23. Ne5 {[%clk 0:01:28.3]} 23...
Rd8 {[%clk 0:01:45.9]} 24. Ra1 {[%clk 0:00:44.9]} 24... Rd5 {[%clk 0:01:02.5]}
25. Nf3 {[%clk 0:00:42.1]} 25... h6 {[%clk 0:00:53.7]} 26. h3 {[%clk 0:00:40.7]}
26... Bd3 {[%clk 0:00:53.1]} 27. Ra2 {[%clk 0:00:15.3]} 27... Bb1 {[%clk
0:00:46.7]} 28. Ra1 {[%clk 0:00:15.1]} 28... Rd1+ {[%clk 0:00:45.2]} 29. Ne1
{[%clk 0:00:15]} 29... Qxb2 {[%clk 0:00:42.8]} 30. Ra8+ {[%clk 0:00:13.6]} 30...
Kh7 {[%clk 0:00:43]} 31. Kh2 {[%clk 0:00:13.7]} 31... Qb7 {[%clk 0:00:32.9]} 32.
Ra7 {[%clk 0:00:09.4]} 32... Qb8+ {[%clk 0:00:28.7]} 33. g3 {[%clk 0:00:08.8]}
33... Bg6 {[%clk 0:00:22.8]} 34. Nf3 {[%clk 0:00:08.7]} 34... Rd3 {[%clk
0:00:22.1]} 35. Qc5 {[%clk 0:00:01.6]} 35... Rxf3 {[%clk 0:00:20.7]} 36. Kg2
{[%clk 0:00:01.6]} 36... Rd3 {[%clk 0:00:19.2]} 37. Ra4 {[%clk 0:00:01.1]} 37...
Rd5 {[%clk 0:00:18.6]} 0-1

[Event "*** Titled Tuesday Blitz"]
[Site "Chess.com"]
[Date "2020.11.03"]
[Round "4"]
[White "Cocaino74"]
[Black "RaneshRatnesan"]
[Result "0-1"]
[WhiteElo "2279"]
[BlackElo "2113"]
[TimeControl "180+1"]
[EndTime "10:41:54 PST"]
[Termination "RaneshRatnesan won on time"]

1. e4 {[%clk 0:03:00.8]} 1... c5 {[%clk 0:02:58.9]} 2. Nf3 {[%clk 0:02:54.7]}
2... d6 {[%clk 0:02:58.6]} 3. Bb5+ {[%clk 0:02:45.6]} 3... Bd7 {[%clk
0:02:55.6]} 4. Bxd7+ {[%clk 0:02:42.4]} 4... Nxd7 {[%clk 0:02:56.5]} 5. O-O
{[%clk 0:02:40.8]} 5... Ngf6 {[%clk 0:02:56.4]} 6. Qe2 {[%clk 0:02:41.4]} 6...
Rc8 {[%clk 0:02:55.9]} 7. c4 {[%clk 0:02:40.2]} 7... g6 {[%clk 0:02:54.8]} 8. b3
{[%clk 0:02:37.6]} 8... Bg7 {[%clk 0:02:55]} 9. Bb2 {[%clk 0:02:37.1]} 9... O-O
{[%clk 0:02:55.1]} 10. d4 {[%clk 0:02:37]} 10... cxd4 {[%clk 0:02:56]} 11. Nxd4
{[%clk 0:02:37.6]} 11... a6 {[%clk 0:02:54.8]} 12. Nc3 {[%clk 0:02:29.8]} 12...
Qa5 {[%clk 0:02:54.1]} 13. Rfd1 {[%clk 0:01:22.2]} 13... Nc5 {[%clk 0:02:20.1]}
14. a3 {[%clk 0:01:17.3]} 14... Qc7 {[%clk 0:02:12.6]} 15. Rac1 {[%clk
0:01:11.5]} 15... e5 {[%clk 0:02:07.5]} 16. b4 {[%clk 0:00:57.6]} 16... exd4
{[%clk 0:02:06.2]} 17. Nd5 {[%clk 0:00:57.9]} 17... Qd8 {[%clk 0:01:57.5]} 18.
Nxf6+ {[%clk 0:00:22.8]} 18... Bxf6 {[%clk 0:01:57.8]} 19. bxc5 {[%clk
0:00:22.1]} 19... dxc5 {[%clk 0:01:58.6]} 20. Rd3 {[%clk 0:00:21.8]} 20... Bg7
{[%clk 0:01:54.9]} 21. f4 {[%clk 0:00:21.2]} 21... Qe7 {[%clk 0:01:52.7]} 22.
Qf3 {[%clk 0:00:20.3]} 22... Rce8 {[%clk 0:01:49.4]} 23. Re1 {[%clk 0:00:18.2]}
23... b5 {[%clk 0:01:49.5]} 24. cxb5 {[%clk 0:00:11.4]} 24... axb5 {[%clk
0:01:50.4]} 25. e5 {[%clk 0:00:12.2]} 25... Qe6 {[%clk 0:01:43.4]} 26. Qb7
{[%clk 0:00:11.2]} 26... Rb8 {[%clk 0:01:39.1]} 27. Qa7 {[%clk 0:00:10.4]} 27...
Rfc8 {[%clk 0:01:32]} 28. Rc1 {[%clk 0:00:10.7]} 28... Qd5 {[%clk 0:01:28.5]}
29. Qa6 {[%clk 0:00:06.3]} 29... Qe4 {[%clk 0:01:21.8]} 30. Rxd4 {[%clk
0:00:06]} 30... Qe3+ {[%clk 0:01:16.7]} 31. Kf1 {[%clk 0:00:04.8]} 31... cxd4
{[%clk 0:00:58.2]} 32. Rxc8+ {[%clk 0:00:05.7]} 32... Rxc8 {[%clk 0:00:58.3]}
33. Qxc8+ {[%clk 0:00:06.6]} 33... Bf8 {[%clk 0:00:58.8]} 34. Bc1 {[%clk
0:00:04.6]} 34... Qd3+ {[%clk 0:00:52]} 35. Kf2 {[%clk 0:00:03.4]} 35... Qe4
{[%clk 0:00:46.2]} 36. Kg3 {[%clk 0:00:02.1]} 36... d3 {[%clk 0:00:44.9]} 37. f5
{[%clk 0:00:02.1]} 37... Qxe5+ {[%clk 0:00:42.3]} 38. Bf4 {[%clk 0:00:01.2]}
38... Qxf5 {[%clk 0:00:40.4]} 39. Bh6 {[%clk 0:00:01.4]} 39... Qxc8 {[%clk
0:00:39.5]} 0-1

[Event "*** Titled Tuesday Blitz"]
[Site "Chess.com"]
[Date "2020.11.03"]
[Round "4"]
[White "Hikaru"]
[Black "AmirBagheri78"]
[Result "1-0"]
[WhiteElo "3217"]
[BlackElo "2580"]
[TimeControl "180+1"]
[EndTime "10:41:55 PST"]
[Termination "Hikaru won by resignation"]

1. Nf3 {[%clk 0:03:00.9]} 1... Nf6 {[%clk 0:02:59]} 2. b3 {[%clk 0:02:58]} 2...
d5 {[%clk 0:02:58.5]} 3. Bb2 {[%clk 0:02:58]} 3... c6 {[%clk 0:02:58.9]} 4. d4
{[%clk 0:02:54.1]} 4... Bg4 {[%clk 0:02:58]} 5. Nbd2 {[%clk 0:02:54.1]} 5...
Nbd7 {[%clk 0:02:57.5]} 6. g3 {[%clk 0:02:51.4]} 6... e6 {[%clk 0:02:57]} 7. Bg2
{[%clk 0:02:51.1]} 7... Be7 {[%clk 0:02:56.3]} 8. h3 {[%clk 0:02:51.5]} 8...
Bxf3 {[%clk 0:02:52.8]} 9. Bxf3 {[%clk 0:02:50.3]} 9... O-O {[%clk 0:02:46.4]}
10. O-O {[%clk 0:02:50.1]} 10... Bd6 {[%clk 0:02:45.2]} 11. e4 {[%clk
0:02:49.8]} 11... dxe4 {[%clk 0:02:44.7]} 12. Nxe4 {[%clk 0:02:50.7]} 12... Nxe4
{[%clk 0:02:43.4]} 13. Bxe4 {[%clk 0:02:51.6]} 13... Re8 {[%clk 0:02:41.7]} 14.
c4 {[%clk 0:02:48.3]} 14... Qa5 {[%clk 0:02:30.2]} 15. a3 {[%clk 0:02:47.6]}
15... Rad8 {[%clk 0:02:25.4]} 16. b4 {[%clk 0:02:33.5]} 16... Qg5 {[%clk
0:02:24.2]} 17. Qc2 {[%clk 0:02:32]} 17... Nf6 {[%clk 0:02:20.8]} 18. Bg2 {[%clk
0:02:31.1]} 18... Bf8 {[%clk 0:02:02.2]} 19. Rfe1 {[%clk 0:02:29.1]} 19... Re7
{[%clk 0:01:57.6]} 20. a4 {[%clk 0:02:22.6]} 20... Red7 {[%clk 0:01:56.8]} 21.
Bc3 {[%clk 0:02:16.1]} 21... h5 {[%clk 0:01:52]} 22. Re5 {[%clk 0:02:13.3]}
22... Qh6 {[%clk 0:01:49.3]} 23. b5 {[%clk 0:02:09.1]} 23... h4 {[%clk
0:01:21.2]} 24. g4 {[%clk 0:02:02.7]} 24... Qf4 {[%clk 0:01:20.2]} 25. g5 {[%clk
0:01:43.6]} 25... Nh7 {[%clk 0:00:58.6]} 26. Qc1 {[%clk 0:01:21.7]} 26... Qxc1+
{[%clk 0:00:55.8]} 27. Rxc1 {[%clk 0:01:22.6]} 27... Bd6 {[%clk 0:00:55.5]} 28.
g6 {[%clk 0:01:11.7]} 28... Bxe5 {[%clk 0:00:40.5]} 29. gxh7+ {[%clk 0:01:12.6]}
29... Kxh7 {[%clk 0:00:39.9]} 30. dxe5 {[%clk 0:01:13.2]} 30... Rd1+ {[%clk
0:00:40]} 31. Rxd1 {[%clk 0:01:13.5]} 31... Rxd1+ {[%clk 0:00:40]} 32. Bf1
{[%clk 0:01:14.3]} 32... Rc1 {[%clk 0:00:36.4]} 33. bxc6 {[%clk 0:01:02.4]}
33... bxc6 {[%clk 0:00:35.3]} 34. Bd4 {[%clk 0:01:02.5]} 34... a5 {[%clk
0:00:33.8]} 35. Bb6 {[%clk 0:01:02.7]} 35... Ra1 {[%clk 0:00:32.5]} 36. Bxa5
{[%clk 0:01:02.6]} 36... Rxa4 {[%clk 0:00:32.4]} 37. Bc7 {[%clk 0:01:03.1]}
37... Ra1 {[%clk 0:00:27.4]} 38. Kg2 {[%clk 0:01:01.6]} 38... f5 {[%clk
0:00:26.9]} 39. exf6 {[%clk 0:01:00.4]} 39... gxf6 {[%clk 0:00:27]} 40. Be2
{[%clk 0:01:01]} 40... Rc1 {[%clk 0:00:25.3]} 41. Bd6 {[%clk 0:01:00.9]} 41...
e5 {[%clk 0:00:23.8]} 42. c5 {[%clk 0:01:01.2]} 42... e4 {[%clk 0:00:23.7]} 43.
Bg4 {[%clk 0:01:00.6]} 43... Kg6 {[%clk 0:00:21.9]} 44. Bd7 {[%clk 0:01:00.8]}
44... Rc2 {[%clk 0:00:21.6]} 45. Bxc6 {[%clk 0:01:01.1]} 45... f5 {[%clk
0:00:21.6]} 46. Kf1 {[%clk 0:00:58.5]} 46... Rc3 {[%clk 0:00:19.9]} 47. Bd7
{[%clk 0:00:56.7]} 47... Rxh3 {[%clk 0:00:19.5]} 48. c6 {[%clk 0:00:56.2]} 48...
Rc3 {[%clk 0:00:19.4]} 49. c7 {[%clk 0:00:56.5]} 49... h3 {[%clk 0:00:19.1]} 50.
c8=Q {[%clk 0:00:56.3]} 50... Rxc8 {[%clk 0:00:19.3]} 51. Bxc8 {[%clk
0:00:57.2]} 51... Kg5 {[%clk 0:00:19.4]} 52. Bh2 {[%clk 0:00:57.7]} 52... Kg4
{[%clk 0:00:19.6]} 53. Ke2 {[%clk 0:00:57.8]} 53... Kg5 {[%clk 0:00:18.9]} 54.
f3 {[%clk 0:00:57.8]} 54... exf3+ {[%clk 0:00:18.5]} 55. Kxf3 {[%clk 0:00:58.7]}
55... Kf6 {[%clk 0:00:18.1]} 56. Kf4 {[%clk 0:00:59.6]} 56... Ke7 {[%clk
0:00:17.8]} 57. Bxf5 {[%clk 0:01:00.5]} 57... Kd6 {[%clk 0:00:17.9]} 58. Bxh3
{[%clk 0:01:01.4]} 58... Kd5 {[%clk 0:00:18]} 59. Kf5 {[%clk 0:01:01.9]} 59...
Kd4 {[%clk 0:00:18.3]} 60. Be5+ {[%clk 0:01:02.8]} 60... Ke3 {[%clk 0:00:18.4]}
61. Bg2 {[%clk 0:01:03.1]} 61... Kf2 {[%clk 0:00:18.5]} 62. Ba8 {[%clk
0:01:03.8]} 62... Ke3 {[%clk 0:00:18.8]} 63. Be4 {[%clk 0:01:04.5]} 63... Ke2
{[%clk 0:00:18.8]} 64. Kf4 {[%clk 0:01:05]} 64... Kf2 {[%clk 0:00:19]} 65. Bd3
{[%clk 0:01:04.9]} 65... Ke1 {[%clk 0:00:19.1]} 66. Ke3 {[%clk 0:01:05.1]} 1-0

[Event "*** Titled Tuesday Blitz"]
[Site "Chess.com"]
[Date "2020.11.03"]
[Round "4"]
[White "Balla_Tamas"]
[Black "almo64"]
[Result "1-0"]
[WhiteElo "2502"]
[BlackElo "2680"]
[TimeControl "180+1"]
[EndTime "10:41:55 PST"]
[Termination "Balla_Tamas won on time"]

1. d4 {[%clk 0:03:00.9]} 1... Nf6 {[%clk 0:02:55.1]} 2. c4 {[%clk 0:03:00.1]}
2... c6 {[%clk 0:02:55.6]} 3. Nc3 {[%clk 0:02:57.8]} 3... d5 {[%clk 0:02:55.9]}
4. Bg5 {[%clk 0:02:54.8]} 4... dxc4 {[%clk 0:02:52.5]} 5. Bxf6 {[%clk
0:02:52.7]} 5... exf6 {[%clk 0:02:52.4]} 6. a4 {[%clk 0:02:53]} 6... Bb4 {[%clk
0:02:48.9]} 7. e3 {[%clk 0:02:52]} 7... b5 {[%clk 0:02:49.1]} 8. axb5 {[%clk
0:02:50.8]} 8... O-O {[%clk 0:02:36]} 9. Qa4 {[%clk 0:02:17.2]} 9... Bxc3+
{[%clk 0:02:26.2]} 10. bxc3 {[%clk 0:02:18.1]} 10... Bb7 {[%clk 0:02:26.6]} 11.
bxc6 {[%clk 0:02:12.3]} 11... Nxc6 {[%clk 0:02:25.5]} 12. Nf3 {[%clk 0:02:11]}
12... Qc7 {[%clk 0:02:18.6]} 13. Bxc4 {[%clk 0:02:09.6]} 13... Na5 {[%clk
0:02:17.7]} 14. Qxa5 {[%clk 0:01:54.2]} 14... Qxc4 {[%clk 0:02:17.3]} 15. Qb4
{[%clk 0:01:53.9]} 15... Qd3 {[%clk 0:01:51.8]} 16. Rd1 {[%clk 0:01:52.6]} 16...
Qa6 {[%clk 0:01:41.7]} 17. c4 {[%clk 0:01:45.7]} 17... Rab8 {[%clk 0:01:41.4]}
18. Qc3 {[%clk 0:01:41.9]} 18... Rfc8 {[%clk 0:01:32]} 19. Nd2 {[%clk
0:01:23.5]} 19... Bxg2 {[%clk 0:01:29.1]} 20. Rg1 {[%clk 0:01:23.7]} 20... Bd5
{[%clk 0:01:18.7]} 21. Rc1 {[%clk 0:01:23.1]} 21... Qd6 {[%clk 0:00:57.6]} 22.
Rg3 {[%clk 0:01:20.6]} 22... Rb4 {[%clk 0:00:55.8]} 23. c5 {[%clk 0:01:17.4]}
23... Qb8 {[%clk 0:00:55.9]} 24. e4 {[%clk 0:01:02]} 24... Ba8 {[%clk
0:00:19.7]} 25. d5 {[%clk 0:00:59.3]} 25... Re8 {[%clk 0:00:15.5]} 26. f3 {[%clk
0:00:47.6]} 26... Qb5 {[%clk 0:00:11.7]} 27. Qxf6 {[%clk 0:00:42.3]} 27... g6
{[%clk 0:00:11.6]} 28. Qc3 {[%clk 0:00:39.6]} 28... Bxd5 {[%clk 0:00:10]} 29. c6
{[%clk 0:00:36.1]} 29... Be6 {[%clk 0:00:10.3]} 30. c7 {[%clk 0:00:35.5]} 30...
Rc8 {[%clk 0:00:10.5]} 31. Kf2 {[%clk 0:00:32.6]} 31... Qb6+ {[%clk 0:00:09.4]}
32. Qe3 {[%clk 0:00:31.9]} 32... Qxe3+ {[%clk 0:00:05.9]} 33. Kxe3 {[%clk
0:00:31.1]} 33... Rb7 {[%clk 0:00:06.8]} 34. Rg5 {[%clk 0:00:30.4]} 34... Rbxc7
{[%clk 0:00:06.3]} 35. Rxc7 {[%clk 0:00:30.2]} 35... Rxc7 {[%clk 0:00:06.1]} 36.
Ra5 {[%clk 0:00:30.9]} 36... Bc8 {[%clk 0:00:02.7]} 37. h4 {[%clk 0:00:28.9]}
37... Kg7 {[%clk 0:00:03]} 38. e5 {[%clk 0:00:26.4]} 38... h5 {[%clk 0:00:02.9]}
39. Ne4 {[%clk 0:00:25.6]} 1-0

[Event "*** Titled Tuesday Blitz"]
[Site "Chess.com"]
[Date "2020.11.03"]
[Round "4"]
[White "Sjakkerntobi"]
[Black "ssrija97"]
[Result "0-1"]
[WhiteElo "2388"]
[BlackElo "2236"]
[TimeControl "180+1"]
[EndTime "10:41:58 PST"]
[Termination "ssrija97 won by resignation"]

1. e4 {[%clk 0:03:00.9]} 1... e5 {[%clk 0:02:57.9]} 2. Nf3 {[%clk 0:03:00.9]}
2... Nc6 {[%clk 0:02:55.1]} 3. Bb5 {[%clk 0:03:01.1]} 3... a6 {[%clk 0:02:54.1]}
4. Ba4 {[%clk 0:03:00.8]} 4... Nf6 {[%clk 0:02:54.2]} 5. O-O {[%clk 0:03:01.2]}
5... b5 {[%clk 0:02:54.2]} 6. Bb3 {[%clk 0:03:01.7]} 6... Bb7 {[%clk 0:02:54.6]}
7. Re1 {[%clk 0:03:00.8]} 7... Bc5 {[%clk 0:02:52.7]} 8. c3 {[%clk 0:02:59.1]}
8... d6 {[%clk 0:02:52.3]} 9. d4 {[%clk 0:02:58.5]} 9... Bb6 {[%clk 0:02:51.9]}
10. Be3 {[%clk 0:02:53.7]} 10... O-O {[%clk 0:02:50.6]} 11. Nbd2 {[%clk
0:02:53.7]} 11... Na5 {[%clk 0:02:27.1]} 12. Bc2 {[%clk 0:02:53.3]} 12... Re8
{[%clk 0:02:26.8]} 13. h3 {[%clk 0:02:51.5]} 13... c5 {[%clk 0:02:25.8]} 14.
dxc5 {[%clk 0:02:43.8]} 14... dxc5 {[%clk 0:02:25.3]} 15. Nf1 {[%clk 0:02:29.2]}
15... Qxd1 {[%clk 0:02:11.6]} 16. Raxd1 {[%clk 0:02:30.1]} 16... Nxe4 {[%clk
0:02:08.4]} 17. Bxe4 {[%clk 0:02:23]} 17... Bxe4 {[%clk 0:02:07.8]} 18. b4
{[%clk 0:02:23.9]} 18... Bxf3 {[%clk 0:02:06.6]} 19. bxa5 {[%clk 0:02:22.1]}
19... Bxd1 {[%clk 0:02:02.3]} 20. axb6 {[%clk 0:02:23]} 20... Bc2 {[%clk
0:01:54.8]} 21. Bxc5 {[%clk 0:02:22.6]} 21... Rac8 {[%clk 0:01:52.4]} 22. Be3
{[%clk 0:02:16.6]} 22... Be4 {[%clk 0:01:41.9]} 23. Nd2 {[%clk 0:02:13.1]} 23...
Bb7 {[%clk 0:01:40.5]} 24. Nb3 {[%clk 0:02:11.3]} 24... Rxc3 {[%clk 0:01:36]}
25. Nc5 {[%clk 0:02:10.4]} 25... Re7 {[%clk 0:01:32.4]} 26. Rd1 {[%clk
0:02:08.2]} 26... f5 {[%clk 0:01:25.2]} 27. Rd8+ {[%clk 0:02:06.4]} 27... Kf7
{[%clk 0:01:24.8]} 28. Rb8 {[%clk 0:02:06.6]} 28... f4 {[%clk 0:01:09.9]} 29.
Nxb7 {[%clk 0:02:06.3]} 29... fxe3 {[%clk 0:01:09]} 30. Nd8+ {[%clk 0:02:06.3]}
30... Kg6 {[%clk 0:01:07.9]} 31. fxe3 {[%clk 0:02:05.5]} 31... Rd7 {[%clk
0:01:01.8]} 32. b7 {[%clk 0:01:58]} 32... Rcc7 {[%clk 0:00:46.6]} 33. Ra8 {[%clk
0:01:43.4]} 33... Rxd8 {[%clk 0:00:37.5]} 34. Rxd8 {[%clk 0:01:44.3]} 34... Rxb7
{[%clk 0:00:37.2]} 35. Rd6+ {[%clk 0:01:44.2]} 35... Kf5 {[%clk 0:00:37]} 36.
Rxa6 {[%clk 0:01:45.1]} 36... Ke4 {[%clk 0:00:36.1]} 37. Kf2 {[%clk 0:01:44.7]}
37... Rc7 {[%clk 0:00:34.3]} 38. Rb6 {[%clk 0:01:43.6]} 38... Rc2+ {[%clk
0:00:33.7]} 39. Kg3 {[%clk 0:01:43.9]} 39... Kxe3 {[%clk 0:00:30.3]} 40. Rxb5
{[%clk 0:01:43.2]} 40... e4 {[%clk 0:00:28.7]} 41. a4 {[%clk 0:01:42.6]} 41...
Kd2 {[%clk 0:00:25.9]} 42. Rd5+ {[%clk 0:01:40.1]} 42... Ke2 {[%clk 0:00:24.6]}
43. a5 {[%clk 0:01:39.9]} 43... Ra2 {[%clk 0:00:23.7]} 44. Kf4 {[%clk
0:01:35.7]} 44... e3 {[%clk 0:00:23.6]} 45. g4 {[%clk 0:01:22.6]} 45... Kf2
{[%clk 0:00:22]} 46. Rf5 {[%clk 0:01:17.4]} 46... e2 {[%clk 0:00:20.8]} 47. Kg5+
{[%clk 0:01:17.3]} 47... Kg2 {[%clk 0:00:20.1]} 48. Re5 {[%clk 0:01:12.9]} 48...
Rxa5 {[%clk 0:00:20.1]} 49. Rxa5 {[%clk 0:01:09.7]} 49... e1=Q {[%clk
0:00:20.3]} 50. Rf5 {[%clk 0:01:08.5]} 50... Qe7+ {[%clk 0:00:18.9]} 51. Kf4
{[%clk 0:01:07]} 51... Kxh3 {[%clk 0:00:19.1]} 52. Rh5+ {[%clk 0:01:07.1]} 52...
Kg2 {[%clk 0:00:18.6]} 53. Rxh7 {[%clk 0:01:05.5]} 53... g5+ {[%clk 0:00:18.8]}
54. Kf5 {[%clk 0:01:01.9]} 54... Qxh7+ {[%clk 0:00:19.7]} 55. Kxg5 {[%clk
0:01:02.8]} 55... Qg7+ {[%clk 0:00:19.3]} 56. Kf5 {[%clk 0:01:03.1]} 56... Kg3
{[%clk 0:00:19.6]} 57. g5 {[%clk 0:01:04]} 57... Kh4 {[%clk 0:00:19.6]} 0-1

[Event "*** Titled Tuesday Blitz"]
[Site "Chess.com"]
[Date "2020.11.03"]
[Round "4"]
[White "The_Machine04"]
[Black "IceBelka"]
[Result "0-1"]
[WhiteElo "2294"]
[BlackElo "2141"]
[TimeControl "180+1"]
[EndTime "10:41:59 PST"]
[Termination "IceBelka won on time"]

1. d4 {[%clk 0:02:59.8]} 1... d5 {[%clk 0:02:58.5]} 2. Bf4 {[%clk 0:02:58.9]}
2... e6 {[%clk 0:02:53]} 3. e3 {[%clk 0:02:54.6]} 3... Bd6 {[%clk 0:02:51.9]} 4.
Bg3 {[%clk 0:02:45.2]} 4... Nf6 {[%clk 0:02:49.4]} 5. Bd3 {[%clk 0:02:42.9]}
5... c5 {[%clk 0:02:47.9]} 6. c3 {[%clk 0:02:40.8]} 6... Qc7 {[%clk 0:02:47.3]}
7. Nd2 {[%clk 0:02:25.2]} 7... Nbd7 {[%clk 0:02:46]} 8. Ngf3 {[%clk 0:02:14.8]}
8... O-O {[%clk 0:02:43.9]} 9. O-O {[%clk 0:01:49.8]} 9... Bxg3 {[%clk
0:02:42.7]} 10. hxg3 {[%clk 0:01:48.5]} 10... e5 {[%clk 0:02:42.8]} 11. dxe5
{[%clk 0:01:42.9]} 11... Nxe5 {[%clk 0:02:43]} 12. Nxe5 {[%clk 0:01:41]} 12...
Qxe5 {[%clk 0:02:43.9]} 13. Re1 {[%clk 0:01:36.8]} 13... Re8 {[%clk 0:02:31.4]}
14. e4 {[%clk 0:01:25.5]} 14... Bg4 {[%clk 0:02:26.4]} 15. f3 {[%clk 0:01:07.6]}
15... Bh5 {[%clk 0:01:45.8]} 16. exd5 {[%clk 0:00:28.1]} 16... Qxd5 {[%clk
0:01:26.4]} 17. Ne4 {[%clk 0:00:18.7]} 17... Qc6 {[%clk 0:00:43]} 18. Nxf6+
{[%clk 0:00:16.3]} 18... Qxf6 {[%clk 0:00:43.9]} 19. Be4 {[%clk 0:00:12.2]}
19... Rad8 {[%clk 0:00:35.9]} 20. Qc2 {[%clk 0:00:10.9]} 20... Bg6 {[%clk
0:00:34.1]} 21. Bxg6 {[%clk 0:00:10.2]} 21... hxg6 {[%clk 0:00:32.8]} 22. Rxe8+
{[%clk 0:00:09]} 22... Rxe8 {[%clk 0:00:32.6]} 23. Rd1 {[%clk 0:00:08.9]} 23...
c4 {[%clk 0:00:31.7]} 24. Qf2 {[%clk 0:00:07]} 24... Qa6 {[%clk 0:00:28.4]} 25.
a3 {[%clk 0:00:05.2]} 25... Qb5 {[%clk 0:00:25.1]} 26. g4 {[%clk 0:00:05]} 26...
a5 {[%clk 0:00:22.9]} 27. Rd2 {[%clk 0:00:05.8]} 27... g5 {[%clk 0:00:21.8]} 28.
g3 {[%clk 0:00:05.3]} 28... Qe5 {[%clk 0:00:19]} 29. Kg2 {[%clk 0:00:06.1]}
29... b5 {[%clk 0:00:18.3]} 30. Qd4 {[%clk 0:00:04]} 30... Qxd4 {[%clk
0:00:15.2]} 31. cxd4 {[%clk 0:00:03.9]} 31... Kf8 {[%clk 0:00:13.9]} 32. Kf2
{[%clk 0:00:03.1]} 32... Ke7 {[%clk 0:00:13.2]} 0-1